fUST/lending_fUST_20251027
["ID","MTS","AMOUNT","RATE_DAILY","PERIOD"]
[392450733,1761496235630,-151.0,0.00019178,2]
[392450734,1761496235645,-152.63346,0.00019178,2]
[392450735,1761496235661,-240.256639,0.00019178,2]
[392450736,1761496235675,-240.256639,0.00019178,2]
[392450737,1761496235690,-240.256639,0.00019178,2]
[392450738,1761496235705,-240.256639,0.00019178,2]
[392450739,1761496235720,-240.256639,0.00019178,2]
[392450740,1761496235735,-240.256639,0.00019178,2]
[392450741,1761496235750,-240.256639,0.00019178,2]
[392450742,1761496235765,-240.256639,0.00019178,2]
[392450743,1761496235780,-240.256639,0.00019178,2]
[392450744,1761496235795,-240.256639,0.00019178,2]
[392450745,1761496235811,-240.256648,0.00019178,2]
[392450746,1761496235827,-152.343779,0.00019178,2]
[392450747,1761496235842,-196.665143,0.00019178,2]
[392450748,1761496235856,-196.665143,0.00019178,2]
[392450749,1761496235871,-196.665143,0.00019178,2]
[392450750,1761496235886,-196.665143,0.00019178,2]
[392450751,1761496236003,-196.665143,0.00019178,2]
[392450752,1761496236013,-196.665143,0.00019178,2]
[392450753,1761496236023,-196.665143,0.00019178,2]
[392450754,1761496236032,-196.665143,0.00019178,2]
[392450755,1761496236042,-196.665143,0.00019178,2]
[392450756,1761496236052,-196.665143,0.00019178,2]
[392450757,1761496236062,-196.665143,0.00019178,2]
[392450758,1761496236072,-196.665143,0.00019178,2]
[392450759,1761496236082,-196.665143,0.00019178,2]
[392450760,1761496236091,-196.665143,0.00019178,2]
[392450761,1761496236100,-196.665143,0.00019178,2]
[392450762,1761496236110,-196.665143,0.00019178,2]
[392450763,1761496236119,-196.665143,0.00019178,2]
[392450764,1761496236129,-196.665143,0.00019178,2]
[392450765,1761496236138,-196.665143,0.00019178,2]
[392450766,1761496236147,-196.665138,0.00019178,2]
[392450767,1761496236158,-151.0,0.00019178,2]
[392450768,1761496236167,-151.0,0.00019178,2]
[392450769,1761496236179,-151.0,0.00019178,2]
[392450770,1761496236189,-151.0,0.00019178,2]
[392450771,1761496236199,-151.0,0.00019178,2]
[392450772,1761496236209,-151.0,0.00019178,2]
[392450773,1761496236219,-171.125151,0.00019178,2]
[392450774,1761496236228,-488.238148,0.00019178,2]
[392450775,1761496236237,-488.238148,0.00019178,2]
[392450776,1761496236247,-488.238148,0.00019178,2]
[392450777,1761496236256,-488.238148,0.00019178,2]
[392450778,1761496236266,-488.238148,0.00019178,2]
[392450779,1761496236276,-488.238148,0.00019178,2]
[392450780,1761496236286,-488.238148,0.00019178,2]
[392450781,1761496236295,-488.238148,0.00019178,2]
[392450782,1761496236306,-488.238148,0.00019178,2]
[392450783,1761496236316,-488.238148,0.00019178,2]
[392450784,1761496236326,-488.238148,0.00019178,2]
[392450785,1761496236336,-488.238148,0.00019178,2]
[392450786,1761496236347,-488.238148,0.00019178,2]
[392450787,1761496236356,-274.991172,0.00019178,2]
[392450788,1761496236366,-488.238148,0.00019178,2]
[392450789,1761496236379,-488.238148,0.00019178,2]
[392450790,1761496236391,-274.991172,0.00019178,2]
[392450791,1761496236401,-488.238148,0.00019178,2]
[392450792,1761496236412,-488.238148,0.00019178,2]
[392450793,1761496236425,-274.991172,0.00019178,2]
[392450794,1761496236435,-488.238148,0.00019178,2]
[392450795,1761496236445,-274.991172,0.00019178,2]
[392450796,1761496236454,-488.238148,0.00019178,2]
[392450797,1761496236466,-274.991172,0.00019178,2]
[392450798,1761496236476,-488.238152,0.00019178,2]
[392450799,1761496236487,-151.0,0.00019178,2]
[392450800,1761496236498,-274.991172,0.00019178,2]
[392450801,1761496236507,-274.991172,0.00019178,2]
[392450802,1761496236517,-151.0,0.00019178,2]
[392450803,1761496236526,-151.0,0.00019178,2]
[392450804,1761496236535,-274.991172,0.00019178,2]
[392450805,1761496236545,-268.314003,0.00019178,2]
[392450806,1761496236554,-274.991172,0.00019178,2]
[392450807,1761496236563,-274.991172,0.00019178,2]
[392450808,1761496236572,-274.991172,0.00019178,2]
[392450809,1761496236582,-274.991172,0.00019178,2]
[392450810,1761496236591,-274.991172,0.00019178,2]
[392450811,1761496236600,-962.526186,0.00019178,2]
[392450812,1761496236609,-274.991172,0.00019178,2]
[392450813,1761496236618,-962.526186,0.00019178,2]
[392450814,1761496236628,-274.991172,0.00019178,2]
[392450815,1761496236637,-962.526186,0.00019178,2]
[392450816,1761496236648,-962.526186,0.00019178,2]
[392450817,1761496236658,-274.991172,0.00019178,2]
[392450818,1761496236668,-962.526186,0.00019178,2]
[392450819,1761496236677,-962.526186,0.00019178,2]
[392450820,1761496236687,-962.526186,0.00019178,2]
[392450821,1761496236698,-962.526186,0.00019178,2]
[392450822,1761496236709,-873.54820287,0.00019178,2]
[392450843,1761496238316,-491.7365413,0.00017368,2]
[392450845,1761496238326,-88.97798313,0.00019178,2]
[392450847,1761496238336,-732.05806935,0.00019178,2]
[392450880,1761496240654,-230.46811665,0.00019178,2]
[392450881,1761496240664,-269.53188335,0.00019178,2]
[392451119,1761496243494,-5.45928865,0.00019178,2]
[392451121,1761496243504,-962.526186,0.00019178,2]
[392451123,1761496243513,-274.991172,0.00019178,2]
[392451125,1761496243522,-962.526186,0.00019178,2]
[392451127,1761496243531,-204.49479018,0.00019178,2]
[392451130,1761496243542,-344.8474044,0.00019178,2]
[392451183,1761496246527,-356.32752106,0.00019178,2]
[392451187,1761496246741,-56.85647036,0.00019178,2]
[392451188,1761496246750,-274.991172,0.00019178,2]
[392451189,1761496246760,-962.526186,0.00019178,2]
[392451190,1761496246769,-274.991181,0.00019178,2]
[392451191,1761496246778,-962.526186,0.00019178,2]
[392451192,1761496246787,-962.526186,0.00019178,2]
[392451193,1761496246796,-962.526186,0.00019178,2]
[392451194,1761496246804,-151.0,0.00019178,2]
[392451195,1761496246813,-962.526186,0.00019178,2]
[392451196,1761496246823,-962.526186,0.00019178,2]
[392451198,1761496246831,-151.0,0.00019178,2]
[392451200,1761496246840,-695.41580425,0.00019178,2]
[392451211,1761496274680,300.0,0.000137,2]
[392451217,1761496403054,1999.0,0.00030136,120]
[392451219,1761496566295,2400.0,0.000295,120]
[392451220,1761496638712,1999.0,0.00030136,120]
[392451222,1761496693345,191.46,0.00030137,120]
[392451223,1761496883328,1949.9701912,0.00030136,120]
[392451267,1761497432661,-232.531932,0.00018216,2]
[392451269,1761497432670,-433.68,0.00018574,2]
[392451271,1761497432679,-191.916798,0.00018963,2]
[392451273,1761497432690,-211.57776609,0.00018963,2]
[392451275,1761497432700,-300.0,0.00018999,2]
[392451277,1761497432709,-300.0,0.00018999,2]
[392451279,1761497432718,-300.0,0.00018999,2]
[392451281,1761497432727,-386.69176278,0.00019,2]
[392451286,1761497432766,-28235.14226112,0.00019,2]
[392451288,1761497432775,-162.7597742,0.00019143,2]
[392451290,1761497432784,-867.36,0.00019458,2]
[392451292,1761497432794,-600.0,0.00019561,2]
[392451294,1761497432804,-151.0,0.00019561,7]
[392451296,1761497432815,-517.55247775,0.00019673,2]
[392451298,1761497432824,-500.0,0.000197,2]
[392451300,1761497432833,-503.2675675,0.000197,2]
[392451302,1761497432842,-224.40394054,0.00019763,2]
[392451305,1761497432853,-1000.0,0.00019763,2]
[392451308,1761497432862,-500.0,0.00019763,2]
[392451310,1761497432872,-1000.0,0.00019763,2]
[392451311,1761497432882,-151.0,0.00019763,2]
[392451312,1761497432891,-274.06367726,0.00019763,2]
[392451313,1761497432900,-1000.0,0.00019763,2]
[392451314,1761497432909,-1000.0,0.00019763,2]
[392451315,1761497432918,-1066.8270085,0.00019763,2]
[392451316,1761497432926,-805.4,0.00019765,3]
[392451317,1761497432935,-195.42336631,0.00019772,2]
[392451318,1761497432944,-500.0,0.00019773,2]
[392451319,1761497432952,-500.0,0.00019773,2]
[392451320,1761497432961,-500.0,0.00019773,2]
[392451321,1761497432970,-500.0,0.00019773,2]
[392451322,1761497432979,-500.0,0.00019773,2]
[392451323,1761497432988,-501.33606962,0.00019773,2]
[392451324,1761497432997,-500.0,0.00019773,2]
[392451325,1761497433005,-500.0,0.00019773,2]
[392451326,1761497433013,-500.0,0.00019773,2]
[392451327,1761497433023,-338.5935552,0.00019773,2]
[392451328,1761497433032,-500.0,0.00019773,2]
[392451329,1761497433040,-500.0,0.00019773,2]
[392451330,1761497433050,-500.0,0.00019773,2]
[392451332,1761497433059,-500.0,0.00019773,2]
[392451334,1761497433068,-500.0,0.00019773,2]
[392451336,1761497433077,-500.0,0.00019773,2]
[392451338,1761497433086,-500.0,0.00019773,2]
[392451340,1761497433095,-500.0,0.00019773,2]
[392451342,1761497433104,-500.0,0.00019773,2]
[392451344,1761497433113,-500.0,0.00019773,2]
[392451346,1761497433122,-500.0,0.00019773,2]
[392451348,1761497433131,-500.0,0.00019773,2]
[392451349,1761497433140,-510.57815392,0.00019773,2]
[392451351,1761497433150,-474.80959064,0.00019773,2]
[392451353,1761497433159,-500.0,0.00019773,2]
[392451355,1761497433169,-618.59421136,0.00019773,2]
[392451357,1761497433178,-500.0,0.00019773,2]
[392451359,1761497433187,-500.0,0.00019773,2]
[392451361,1761497433196,-500.0,0.00019773,2]
[392451363,1761497433205,-500.0,0.00019773,2]
[392451365,1761497433215,-500.0,0.00019774,2]
[392451367,1761497433225,-500.0,0.00019774,2]
[392451370,1761497433235,-500.0,0.00019774,2]
[392451371,1761497433244,-500.0,0.00019774,2]
[392451373,1761497433253,-500.0,0.00019774,2]
[392451376,1761497433263,-500.0,0.00019774,2]
[392451378,1761497433272,-500.0,0.00019774,2]
[392451379,1761497433281,-500.0,0.00019774,2]
[392451381,1761497433290,-298.00855773,0.00019774,2]
[392451383,1761497433300,-876.36200938,0.00019775,2]
[392451385,1761497433309,-8410.23654771,0.00019775,2]
[392451387,1761497433318,-175.289374,0.00019775,7]
[392451389,1761497433327,-151.0,0.00019775,7]
[392451391,1761497433336,-151.0,0.00019775,7]
[392451393,1761497433345,-301.166007,0.00019775,7]
[392451395,1761497433355,-151.0,0.00019775,7]
[392451397,1761497433364,-151.0,0.00019775,7]
[392451399,1761497433374,-151.0,0.00019775,7]
[392451401,1761497433383,-151.0,0.00019775,7]
[392451403,1761497433392,-151.0,0.00019775,7]
[392451405,1761497433402,-154.652604,0.00019775,7]
[392451407,1761497433411,-151.0,0.00019775,7]
[392451408,1761497433421,-151.0,0.00019775,7]
[392451410,1761497433430,-155.442654,0.00019775,7]
[392451412,1761497433438,-236671.78902235,0.00019775,2]
[392451413,1761497433450,-474.08125622,0.00019775,2]
[392451444,1761497438590,-50220.16244909,0.00019775,2]
[392451446,1761497438601,-2525.41,0.00019775,2]
[392451451,1761497438643,-733.86066332,0.00019775,2]
[392451572,1761497440901,-2239.665,0.00019775,2]
[392451656,1761497443789,-151.0,0.00019775,7]
[392451657,1761497443798,-7923.738123,0.00019775,7]
[392451659,1761497443809,-19559.65742556,0.00019775,2]
[392451661,1761497443822,-3623.4812326,0.00019775,2]
[392451663,1761497443836,-500.0,0.00019775,2]
[392451669,1761497443895,-7776.0,0.00019775,2]
[392451691,1761497446777,-281.94334,0.00019775,7]
[392451692,1761497446786,-11877.44020648,0.00019775,2]
[392451693,1761497446829,-616.09405403,0.00019775,2]
[392451694,1761497446840,-30830.2868649,0.00019775,2]
[392451695,1761497446884,-605.44254105,0.00019775,2]
[392451698,1761497631967,10000.0,0.00030137,120]
[392451699,1761497657482,10000.0,0.00030137,120]
[392451701,1761497687994,10000.0,0.00030137,120]
[392451702,1761497754598,9711.30130311,0.00030137,120]
[392451705,1761497838212,200.0,0.0001825,9]
[392451709,1761497984103,165.658393,0.00013699,2]
[392451794,1761498632023,-200.0,0.0001778,2]
[392451795,1761498632033,-800.0,0.0001789,2]
[392451796,1761498632042,-218.88594628,0.00018116,2]
[392451797,1761498632051,-250.0,0.00018427,2]
[392451798,1761498632061,-9.38970452,0.00018466,2]
[392451799,1761498632073,-161.79240865,0.00018466,2]
[392451800,1761498632083,-257.03453343,0.00018466,2]
[392451801,1761498632092,-300.0,0.00018476,2]
[392451802,1761498632102,-98.31870201,0.00018477,2]
[392451803,1761498632113,-201.68129799,0.00018477,2]
[392451804,1761498632123,-300.0,0.00018477,2]
[392451805,1761498632132,-300.0,0.00018477,2]
[392451806,1761498632142,-300.0,0.00018477,2]
[392451807,1761498632151,-300.0,0.00018477,2]
[392451808,1761498632160,-300.0,0.00018477,2]
[392451809,1761498632169,-300.0,0.00018477,2]
[392451810,1761498632179,-300.0,0.00018477,2]
[392451811,1761498632188,-300.0,0.00018477,2]
[392451812,1761498632198,-300.0,0.00018477,2]
[392451813,1761498632208,-300.0,0.00018477,2]
[392451814,1761498632218,-300.0,0.00018477,2]
[392451815,1761498632228,-300.0,0.00018477,2]
[392451816,1761498632238,-300.0,0.00018477,2]
[392451817,1761498632247,-300.0,0.00018477,2]
[392451818,1761498632257,-419.03,0.00018655,2]
[392451819,1761498632266,-600.0,0.00018846,2]
[392451820,1761498632276,-800.0,0.00019359,2]
[392451821,1761498632285,-800.0,0.00019432,2]
[392451822,1761498632295,-800.0,0.00019438,2]
[392451823,1761498632304,-800.0,0.00019451,2]
[392451824,1761498632313,-800.0,0.00019455,2]
[392451825,1761498632322,-800.0,0.00019463,2]
[392451826,1761498632332,-800.0,0.00019476,2]
[392451827,1761498632342,-255.0,0.00019499,2]
[392451828,1761498632351,-800.0,0.00019506,2]
[392451829,1761498632359,-800.0,0.00019533,2]
[392451830,1761498632369,-800.0,0.00019542,2]
[392451831,1761498632379,-800.0,0.00019543,2]
[392451832,1761498632389,-838.06,0.00019544,2]
[392451833,1761498632400,-200.70929536,0.00019561,2]
[392451834,1761498632409,-800.0,0.0001958,2]
[392451835,1761498632418,-800.0,0.00019585,2]
[392451836,1761498632427,-592.67320669,0.00019595,2]
[392451837,1761498632436,-218.23894108,0.00019595,2]
[392451838,1761498632446,-800.0,0.00019596,2]
[392451839,1761498632455,-800.0,0.00019608,2]
[392451840,1761498632465,-800.0,0.00019615,2]
[392451841,1761498632475,-217.57985794,0.00019623,2]
[392451842,1761498632485,-488.0144792,0.00019661,2]
[392451843,1761498632494,-800.0,0.00019666,2]
[392451844,1761498632503,-500.0,0.00019699,2]
[392451845,1761498632517,-800.0,0.00019699,2]
[392451846,1761498632526,-184.54453003,0.00019774,2]
[392451847,1761498632537,-205.31270993,0.00019774,2]
[392451848,1761498632547,-429.7149393,0.00019775,2]
[392451849,1761498632559,-37402.8850336,0.00019775,2]
[392451850,1761498632568,-763.0,0.000198,2]
[392451851,1761498632578,-2562.45592405,0.00019873,2]
[392451852,1761498632591,-6353.54463232,0.00019887,2]
[392451853,1761498632600,-271.44,0.0001989,3]
[392451854,1761498632610,-814.36,0.0001989,3]
[392451855,1761498632619,-141339.19685735,0.000199,2]
[392451886,1761498637753,-164303.55777204,0.000199,2]
[392451893,1761498637806,-36437.78748296,0.000199,2]
[392451938,1761498640120,-20755.47957919,0.000199,2]
[392451968,1761498640387,-4721.02137036,0.000199,2]
[392451970,1761498640399,-2442.9569381,0.000199,2]
[392451972,1761498640408,-500.0,0.00019973,2]
[392451974,1761498640418,-500.0,0.00019987,2]
[392451976,1761498640427,-647.51133077,0.00019987,2]
[392451978,1761498640436,-151.0,0.00019987,2]
[392451980,1761498640445,-4000.0,0.0001999,2]
[392451982,1761498640455,-151.0,0.00019999,2]
[392451984,1761498640464,-151.0,0.00019999,2]
[392451986,1761498640473,-500.0,0.00019999,2]
[392451988,1761498640482,-151.0,0.00019999,2]
[392451989,1761498640492,-161.55711715,0.00019999,2]
[392451990,1761498640502,-500.0,0.00019999,2]
[392451991,1761498640511,-151.0,0.00019999,2]
[392451992,1761498640526,-154.70207885,0.00019999,2]
[392451993,1761498640536,-393.61,0.00019999,2]
[392451994,1761498640546,-2000.0,0.0002,7]
[392451995,1761498640556,-10341.03855066,0.0002,2]
[392451996,1761498640567,-16825.93440417,0.0002,2]
[392452057,1761498646096,-1857.15265474,0.0002,2]
[392452059,1761498646106,-4072.758429,0.0002,2]
[392452061,1761498646115,-194.883108,0.0002,2]
[392452062,1761498646124,-1003.380388,0.0002,2]
[392452063,1761498646133,-151.0,0.00020054,2]
[392452064,1761498646142,-153.3911103,0.00020054,2]
[392452065,1761498646151,-500.0,0.00020054,2]
[392452066,1761498646160,-296.85593867,0.00020054,2]
[392452067,1761498646169,-500.0,0.00020054,2]
[392452068,1761498646179,-153.97469244,0.00020054,2]
[392452069,1761498646188,-151.0,0.00020109,2]
[392452070,1761498646197,-500.0,0.00020109,2]
[392452071,1761498646206,-500.0,0.00020109,2]
[392452072,1761498646215,-182.731289,0.0002015,7]
[392452073,1761498646224,-151.0,0.0002015,7]
[392452074,1761498646234,-170.352698,0.0002015,7]
[392452075,1761498646243,-151.0,0.0002015,7]
[392452076,1761498646253,-151.0,0.0002015,7]
[392452077,1761498646263,-7527.551217,0.0002015,7]
[392452078,1761498646273,-7527.551217,0.0002015,7]
[392452079,1761498646282,-7527.551217,0.0002015,7]
[392452080,1761498646291,-7527.551217,0.0002015,7]
[392452081,1761498646302,-157.578135,0.0002015,7]
[392452082,1761498646312,-267.110385,0.0002015,7]
[392452083,1761498646321,-172.338732,0.0002015,7]
[392452084,1761498646331,-151.0,0.0002015,7]
[392452085,1761498646341,-151.0,0.0002015,7]
[392452086,1761498646350,-151.0,0.0002015,7]
[392452087,1761498646359,-151.0,0.0002015,7]
[392452088,1761498646367,-151.0,0.0002015,7]
[392452089,1761498646378,-151.0,0.0002015,7]
[392452090,1761498646387,-151.0,0.0002015,7]
[392452091,1761498646396,-420.0,0.0002015,2]
[392452092,1761498646406,-151.0,0.0002015,7]
[392452093,1761498646415,-151.0,0.0002015,7]
[392452094,1761498646424,-151.0,0.0002015,7]
[392452095,1761498646433,-151.0,0.00020163,2]
[392452096,1761498646445,-229.58289593,0.00020163,2]
[392452097,1761498646454,-500.0,0.00020163,2]
[392452098,1761498646463,-674.064732,0.00020187,2]
[392452099,1761498646473,-237.70400979,0.00020209,2]
[392452100,1761498646483,-290.26673834,0.00020218,2]
[392452101,1761498646494,-500.0,0.00020218,2]
[392452102,1761498646503,-500.0,0.00020273,2]
[392452103,1761498646513,-500.0,0.00020328,2]
[392452104,1761498646523,-950.81603915,0.0002033,2]
[392452105,1761498646537,-2562.45592402,0.00020382,2]
[392452106,1761498646547,-500.0,0.00020383,2]
[392452107,1761498646556,-151.0,0.00020437,7]
[392452108,1761498646567,-151.0,0.00020437,7]
[392452109,1761498646576,-500.0,0.00020437,2]
[392452110,1761498646585,-2139.33608809,0.00020452,2]
[392452111,1761498646595,-249.0,0.00020486,2]
[392452112,1761498646605,-520.07678697,0.00020492,2]
[392452113,1761498646615,-249.0,0.000205,2]
[392452114,1761498646781,-500.0,0.000205,2]
[392452115,1761498646792,-500.0,0.000205,2]
[392452116,1761498646803,-500.0,0.000205,2]
[392452117,1761498646814,-500.0,0.000205,2]
[392452118,1761498646823,-500.0,0.000205,2]
[392452119,1761498646832,-500.0,0.000205,2]
[392452120,1761498646841,-500.0,0.000205,2]
[392452121,1761498646851,-500.0,0.000205,2]
[392452122,1761498646860,-500.0,0.000205,2]
[392452123,1761498646870,-500.0,0.000205,2]
[392452124,1761498646880,-500.0,0.000205,2]
[392452125,1761498646890,-500.0,0.000205,2]
[392452126,1761498646899,-481.3666396,0.000205,2]
[392452127,1761498646909,-500.0,0.000205,2]
[392452128,1761498646919,-522.01664894,0.00020521,7]
[392452129,1761498646928,-2088.06659578,0.00020537,7]
[392452130,1761498646937,-198.722475,0.00020548,7]
[392452131,1761498646946,-198.722475,0.00020548,7]
[392452132,1761498646955,-198.722475,0.00020548,7]
[392452133,1761498646964,-198.722475,0.00020548,7]
[392452134,1761498646974,-198.722475,0.00020548,7]
[392452135,1761498646982,-198.722475,0.00020548,7]
[392452136,1761498646992,-198.722475,0.00020548,7]
[392452137,1761498647002,-198.722475,0.00020548,7]
[392452138,1761498647012,-4698.1498405,0.00020553,7]
[392452139,1761498647022,-8352.26638312,0.00020569,7]
[392452140,1761498647032,-3803.2641566,0.00020573,2]
[392452141,1761498647043,-151.0,0.00020577,7]
[392452142,1761498647052,-151.0,0.00020577,7]
[392452143,1761498647062,-151.0,0.00020577,7]
[392452144,1761498647071,-151.0,0.00020577,7]
[392452145,1761498647080,-151.0,0.00020577,7]
[392452146,1761498647089,-151.0,0.00020577,7]
[392452147,1761498647098,-151.0,0.00020577,7]
[392452148,1761498647107,-154.03268,0.00020577,7]
[392452149,1761498647119,-198.22335202,0.00020589,2]
[392452150,1761498647129,-5942.60024468,0.00020695,2]
[392452151,1761498647139,-720.0,0.0002073,2]
[392452152,1761498647150,-249.0,0.00020742,2]
[392452153,1761498647159,-2570.0,0.00020791,2]
[392452154,1761498647169,-253.0,0.00020801,2]
[392452155,1761498647179,-6394.68,0.00020806,10]
[392452156,1761498647188,-8557.34435235,0.00020816,2]
[392452157,1761498647197,-249.0,0.00020866,2]
[392452158,1761498647216,-151.0,0.00020868,7]
[392452159,1761498647227,-151.0,0.00020868,7]
[392452160,1761498647237,-152.794928,0.00020868,7]
[392452161,1761498647247,-151.0,0.00020868,7]
[392452162,1761498647257,-151.0,0.00020868,7]
[392452163,1761498647268,-153.648193,0.00020868,7]
[392452164,1761498647278,-151.0,0.00020868,7]
[392452165,1761498647288,-280.178679,0.00020868,7]
[392452166,1761498647299,-7527.551217,0.00020868,7]
[392452167,1761498647309,-7527.551217,0.00020868,7]
[392452168,1761498647319,-7527.551217,0.00020868,7]
[392452169,1761498647328,-7527.551217,0.00020868,7]
[392452170,1761498647338,-249.0,0.0002087,2]
[392452171,1761498647348,-151.0,0.0002089,7]
[392452172,1761498647358,-151.0,0.0002089,7]
[392452173,1761498647368,-198.722475,0.0002089,7]
[392452174,1761498647377,-198.722475,0.0002089,7]
[392452175,1761498647388,-198.722475,0.0002089,7]
[392452176,1761498647399,-198.722475,0.0002089,7]
[392452177,1761498647408,-2562.45592402,0.00020891,2]
[392452178,1761498647417,-2570.0,0.000209,2]
[392452179,1761498647427,-11635.8489831,0.00020937,2]
[392452180,1761498647436,-249.0,0.00020968,2]
[392452181,1761498647446,-151.0,0.00020968,7]
[392452182,1761498647455,-151.0,0.00020968,7]
[392452183,1761498647465,-151.0,0.00020968,7]
[392452184,1761498647475,-151.0,0.00020968,7]
[392452185,1761498647485,-151.982893,0.00020968,7]
[392452186,1761498647494,-151.0,0.00020968,7]
[392452187,1761498647506,-160.0,0.00020968,2]
[392452188,1761498647516,-4142.0,0.00020982,2]
[392452189,1761498647529,-7527.551217,0.00020988,7]
[392452190,1761498647539,-7527.551217,0.00020988,7]
[392452191,1761498647549,-7527.551217,0.00020988,7]
[392452192,1761498647560,-7527.551217,0.00020988,7]
[392452193,1761498647569,-151.0,0.00020988,7]
[392452194,1761498647580,-151.0,0.00020988,7]
[392452195,1761498647591,-198.722475,0.00020988,7]
[392452196,1761498647601,-198.722475,0.00020988,7]
[392452197,1761498647610,-198.722475,0.00020988,7]
[392452198,1761498647620,-198.722475,0.00020988,7]
[392452199,1761498647631,-6000.0,0.00020999,2]
[392452200,1761498647642,-1602.771267,0.00021,2]
[392452201,1761498647651,-157.600089,0.00021,7]
[392452202,1761498647661,-151.0,0.00021,7]
[392452203,1761498647671,-193.367062,0.00021,7]
[392452204,1761498647680,-151.0,0.00021,7]
[392452205,1761498647691,-200.729348,0.00021,7]
[392452206,1761498647700,-1000.0,0.00021048,2]
[392452207,1761498647710,-410.29180932,0.00021048,2]
[392452208,1761498647722,-1000.0,0.00021048,2]
[392452209,1761498647732,-1000.0,0.00021048,2]
[392452210,1761498647742,-1000.0,0.00021048,2]
[392452211,1761498647751,-1000.0,0.00021048,2]
[392452212,1761498647760,-1000.0,0.00021048,2]
[392452213,1761498647770,-1000.0,0.00021048,2]
[392452214,1761498647779,-1000.0,0.00021048,2]
[392452215,1761498647788,-1000.0,0.00021048,2]
[392452216,1761498647797,-1000.0,0.00021048,2]
[392452217,1761498647806,-1000.0,0.00021048,2]
[392452218,1761498647816,-500.0,0.00021057,2]
[392452219,1761498647825,-4324.0,0.00021091,2]
[392452220,1761498647835,-998.0,0.00021112,2]
[392452221,1761498647845,-249.0,0.00021146,2]
[392452222,1761498647855,-151.0,0.00021158,7]
[392452223,1761498647864,-152.19683,0.00021158,7]
[392452224,1761498647874,-151.0,0.00021158,7]
[392452225,1761498647884,-7527.551217,0.00021158,7]
[392452226,1761498647893,-7527.551217,0.00021158,7]
[392452227,1761498647903,-7527.551217,0.00021158,7]
[392452228,1761498647913,-7527.551217,0.00021158,7]
[392452229,1761498647923,-253.0,0.00021168,2]
[392452230,1761498647932,-198.722475,0.00021173,7]
[392452231,1761498647942,-198.722475,0.00021173,7]
[392452232,1761498647951,-198.722475,0.00021173,7]
[392452233,1761498647961,-198.72248,0.00021173,7]
[392452234,1761498647970,-151.0,0.00021189,7]
[392452235,1761498647979,-151.0,0.00021189,7]
[392452236,1761498647989,-15279.42632832,0.000212,30]
[392452237,1761498647999,-1000.0,0.00021228,5]
[392452238,1761498648008,-542.88,0.0002126,3]
[392452239,1761498648018,-7527.551217,0.00021273,7]
[392452240,1761498648028,-7527.551217,0.00021273,7]
[392452241,1761498648039,-7527.551217,0.00021273,7]
[392452242,1761498648048,-7527.55120741,0.00021273,7]
[392452243,1761498648058,-249.0,0.00021294,2]
[392452244,1761498648068,-2562.45592402,0.00021399,2]
[392452245,1761498648077,-200.0,0.00021416,3]
[392452246,1761498648086,-235.588398,0.00021416,7]
[392452247,1761498648098,-168.0,0.00021417,2]
[392452248,1761498648107,-500.0,0.00021425,2]
[392452249,1761498648117,-500.0,0.00021425,2]
[392452250,1761498648126,-500.0,0.00021425,2]